bitfinex/quotes_SOLUSD_20220306
["timestamp","ask_amount","ask_price","bid_price","bid_amount"]
[1646551723175,1.53684524,88.584,88.554,5.644]
[1646551724377,1.53684524,88.585,88.554,5.644]
[1646551724976,1.53684524,88.588,88.554,5.644]
[1646551725376,1.53684524,88.587,88.554,5.644]
[1646551725677,6.17485676,88.609,88.553,57.69510177]
[1646551725678,1.53684524,88.59,88.555,2.83613526]
[1646551725876,1.53684524,88.593,88.555,2.83613526]
[1646551726077,1.53684524,88.6,88.56,16.26]
[1646551726293,1.53684524,88.602,88.56,16.26]
[1646551726594,1.53684524,88.605,88.561,8.48013526]
[1646551726794,1.53684524,88.606,88.561,8.48013526]
[1646551726997,1.53684524,88.606,88.562,2.83613526]
[1646551727194,1.53684524,88.606,88.563,5.644]
[1646551727595,1.53684524,88.606,88.564,2.83613526]
[1646551727796,1.53684524,88.606,88.565,5.644]
[1646551728195,1.53684524,88.606,88.567,64.31551952]
[1646551728397,1.53684524,88.606,88.568,5.644]
[1646551728595,1.53684524,88.606,88.568,8.48013526]
[1646551728796,1.53684524,88.608,88.569,2.83613526]
[1646551729097,1.53684524,88.608,88.57,5.644]
[1646551729499,1.53684524,88.608,88.571,2.83613526]
[1646551729996,1.53684524,88.609,88.572,5.644]
[1646551730197,1.53684524,88.608,88.572,5.644]
[1646551730397,1.53684524,88.608,88.573,2.83613526]
[1646551730598,1.53684524,88.608,88.574,5.643]
[1646551730999,1.53684524,88.609,88.574,8.47913526]
[1646551731198,1.53684524,88.611,88.574,8.47913526]
[1646551731897,1.53684524,88.612,88.574,8.47913526]
[1646551732101,1.53684524,88.611,88.574,8.47913526]
[1646551733199,1.53684524,88.612,88.574,8.47913526]
[1646551734100,1.53684524,88.613,88.574,8.47913526]
[1646551734706,1.53684524,88.614,88.574,8.47913526]
[1646551735405,1.53684524,88.613,88.574,8.47913526]
[1646551735605,1.53684524,88.614,88.574,8.47913526]
[1646551736005,1.53684524,88.614,88.574,5.643]
[1646551736204,1.53684524,88.614,88.571,5.643]
[1646551736606,1.53684524,88.613,88.571,5.643]
[1646551736810,1.53684524,88.612,88.571,5.643]
[1646551737007,1.53684524,88.613,88.571,5.643]
[1646551737309,1.53684524,88.612,88.571,5.643]
[1646551737707,1.53684524,88.609,88.571,5.643]
[1646551738508,1.53684524,88.61,88.571,5.643]
[1646551738708,1.53684524,88.609,88.571,5.643]
[1646551740612,1.53684524,88.605,88.571,5.643]
[1646551740812,1.53684524,88.604,88.571,5.643]
[1646551741512,1.53684524,88.605,88.571,5.643]
[1646551741714,1.53684524,88.606,88.571,5.643]
[1646551742011,1.53684524,88.605,88.571,5.643]
[1646551742610,1.53684524,88.604,88.571,5.643]
[1646551743011,1.53684524,88.606,88.571,5.643]
[1646551743611,1.53684524,88.605,88.571,5.643]
[1646551744016,1.53684524,88.606,88.571,5.643]
[1646551744613,1.53684524,88.605,88.571,5.643]
[1646551744821,7.28,88.605,88.55,16.26]
[1646551745017,1.53684524,88.598,88.543,2.83613526]
[1646551745215,1.53684524,88.595,88.543,2.83613526]
[1646551745618,1.53684524,88.595,88.558,64.84108233]
[1646551745816,1.53684524,88.594,88.558,64.84108233]
[1646551746015,1.53684524,88.593,88.558,64.84108233]
[1646551747215,1.53684524,88.592,88.558,64.84108233]
[1646551747416,1.53684524,88.593,88.558,64.84108233]
[1646551748018,1.53684524,88.593,88.543,2.83613526]
[1646551748218,1.53684524,88.592,88.543,2.83613526]
[1646551748419,1.53684524,88.589,88.543,2.83613526]
[1646551749021,1.53684524,88.589,88.551,49.35037808]
[1646551750124,1.53684524,88.588,88.551,49.35037808]
[1646551750421,1.53684524,88.587,88.551,49.35037808]
[1646551750624,1.53684524,88.588,88.551,49.35037808]
[1646551750821,1.53684524,88.589,88.551,49.35037808]
[1646551751021,1.53684524,88.588,88.551,49.35037808]
[1646551752123,1.53684524,88.587,88.551,49.35037808]
[1646551752324,1.53684524,88.588,88.551,49.35037808]
[1646551752846,1.53684524,88.588,88.543,2.83613526]
[1646551753047,1.53684524,88.587,88.534,23.135]
[1646551753247,1.53684524,88.571,88.534,23.135]
[1646551753446,1.53684524,88.568,88.519,2.83613526]
[1646551753647,1.53684524,88.565,88.512,23.135]
[1646551753846,1.53684524,88.564,88.512,23.135]
[1646551754046,41.9846052,88.564,88.512,23.135]
[1646551754445,23.1531,88.563,88.512,23.135]
[1646551758952,23.1531,88.563,88.506,2.83613526]
[1646551760054,23.1531,88.563,88.51,51.07483662]
[1646551763258,23.1531,88.563,88.511,5.647]
[1646551765564,23.1531,88.563,88.51,51.07483662]
[1646551767863,23.1531,88.563,88.511,8.48313526]
[1646551768264,23.1531,88.563,88.512,2.83613526]
[1646551768465,23.1531,88.563,88.513,5.647]
[1646551768962,23.1531,88.563,88.514,2.83613526]
[1646551769162,23.1531,88.563,88.515,5.647]
[1646551769565,23.1531,88.563,88.516,2.83613526]
[1646551769763,23.1531,88.563,88.517,5.647]
[1646551770165,23.1531,88.563,88.52,16.9433]
[1646551770366,23.1531,88.563,88.521,5.647]
[1646551773967,1.53684524,88.569,88.521,5.647]
[1646551774167,1.53684524,88.569,88.53,16.9415]
[1646551774368,1.53684524,88.578,88.53,33.2015]
[1646551774568,1.53684524,88.592,88.531,26.11723526]
[1646551774768,1.53684524,88.597,88.531,53.13316232]
[1646551774967,1.53684524,88.597,88.532,29.85206232]
[1646551775469,1.53684524,88.596,88.533,29.85206232]
[1646551775868,1.53684524,88.596,88.534,2.83613526]
[1646551776270,1.53684524,88.597,88.54,16.9338]
[1646551776470,1.53684524,88.598,88.542,56.48]
[1646551777370,1.53684524,88.599,88.543,2.83613526]
[1646551777570,1.53684524,88.6,88.543,2.83613526]
[1646551777971,1.53684524,88.599,88.543,2.83613526]
[1646551778172,1.53684524,88.599,88.55,16.9369]
[1646551778370,1.53684524,88.598,88.55,16.9369]
[1646551778572,1.53684524,88.599,88.55,16.9369]
[1646551779372,1.53684524,88.596,88.55,16.9369]
[1646551779773,1.53684524,88.593,88.541,84.80471385]
[1646551779975,1.53684524,88.594,88.541,84.80471385]
[1646551780175,1.53684524,88.596,88.541,84.80471385]
[1646551780475,1.53684524,88.596,88.543,56.48]
[1646551780677,1.53684524,88.599,88.543,56.48]
[1646551780877,1.53684524,88.6,88.545,56.48]
[1646551781177,1.53684524,88.6,88.551,56.48]
[1646551781377,1.53684524,88.602,88.551,56.48]
[1646551781579,1.53684524,88.602,88.553,56.48]
[1646551781979,1.53684524,88.602,88.554,2.83613526]
[1646551782677,1.53684524,88.604,88.554,2.83613526]
[1646551783077,1.53684524,88.604,88.553,56.48]
[1646551784082,1.53684524,88.605,88.553,56.48]
[1646551784282,1.53684524,88.606,88.552,23.1785]
[1646551784482,1.53684524,88.603,88.552,23.1785]
[1646551784682,1.53684524,88.601,88.552,23.1785]
[1646551785484,1.53684524,88.6,88.552,23.1785]
[1646551786085,1.53684524,88.597,88.552,23.1785]
[1646551786301,1.53684524,88.598,88.552,23.1785]
[1646551787102,1.53684524,88.599,88.552,23.1785]
[1646551787302,1.53684524,88.603,88.552,23.1785]
[1646551787902,1.53684524,88.602,88.552,23.1785]
[1646551788302,1.53684524,88.603,88.552,23.1785]
[1646551790905,1.53684524,88.602,88.552,23.1785]
[1646551791509,1.53684524,88.605,88.552,23.1785]
[1646551791705,1.53684524,88.605,88.553,2.83613526]
[1646551791905,1.53684524,88.606,88.553,2.83613526]
[1646551792305,1.53684524,88.605,88.552,23.1785]
[1646551792507,1.53684524,88.604,88.552,23.1785]
[1646551795808,1.53684524,88.602,88.553,5.644]
[1646551799018,1.53684524,88.6,88.553,5.644]
[1646551800816,1.53684524,88.597,88.553,5.644]
[1646551802117,24.0101,88.611,88.553,5.644]
[1646551802118,1.53684524,88.599,88.553,5.644]
[1646551802717,1.53684524,88.591,88.553,5.644]
[1646551803319,1.53684524,88.593,88.553,5.644]
[1646551803620,1.53684524,88.59,88.553,5.644]
[1646551804224,1.53684524,88.591,88.553,5.644]
[1646551804620,6.17348116,88.61,88.553,5.644]
[1646551804621,1.53684524,88.59,88.553,5.644]
[1646551804819,1.53684524,88.591,88.552,23.1785]
[1646551805020,1.53684524,88.59,88.552,23.1785]
[1646551805220,1.53684524,88.591,88.552,23.1785]
[1646551805621,1.53684524,88.591,88.553,2.83613526]
[1646551805821,1.53684524,88.591,88.56,16.9351]
[1646551806622,1.53684524,88.591,88.57,16.26]
[1646551806824,1.53684524,88.598,88.58,16.9308]
[1646551807021,1.53684524,88.602,88.58,16.9308]
[1646551807521,1.53684524,88.604,88.581,63.87973932]
[1646551808524,1.53684524,88.604,88.582,5.643]
[1646551808925,1.53684524,88.604,88.573,5.643]
[1646551809624,1.53684524,88.603,88.573,5.643]
[1646551809824,1.53684524,88.605,88.574,56.95892185]
[1646551810024,1.53684524,88.605,88.575,5.644]
[1646551812230,1.53684524,88.606,88.575,5.644]
[1646551812427,1.53684524,88.609,88.575,5.644]
[1646551813627,1.53684524,88.609,88.574,56.95892185]
[1646551813628,1.53684524,88.608,88.574,56.95892185]
[1646551814630,1.53684524,88.608,88.575,5.643]
[1646551814830,1.53684524,88.609,88.575,5.643]
[1646551815329,1.53684524,88.608,88.575,5.643]
[1646551815730,1.53684524,88.609,88.575,5.643]
[1646551816833,1.53684524,88.608,88.575,5.643]
[1646551818636,1.53684524,88.607,88.575,5.643]
[1646551820538,1.53684524,88.608,88.575,5.643]
[1646551821039,1.53684524,88.607,88.575,5.643]
[1646551825743,1.53684524,88.606,88.575,5.643]
[1646551826146,1.53684524,88.606,88.572,22.5086]
[1646551826344,1.53684524,88.607,88.56,27.01592706]
[1646551826544,1.53684524,88.6,88.554,22.9074]
[1646551826747,1.53684524,88.591,88.554,76.51199984]
[1646551826944,1.53684524,88.587,88.554,22.9074]
[1646551827145,1.53684524,88.589,88.554,22.9074]
[1646551827344,1.53684524,88.589,88.534,56.48]
[1646551827570,15.23650363,88.603,88.533,29.85206232]
[1646551827571,1.53684524,88.583,88.533,29.85206232]
[1646551827764,1.53684524,88.578,88.533,29.85206232]
[1646551827961,23.7639,88.589,88.533,29.85206232]
[1646551827962,1.53684524,88.579,88.533,29.85206232]
[1646551828161,1.53684524,88.58,88.533,46.71416232]
[1646551828361,1.53684524,88.579,88.533,46.71416232]
[1646551828862,1.53684524,88.58,88.533,46.71416232]
[1646551829063,1.53684524,88.579,88.533,46.71416232]
[1646551829463,1.53684524,88.581,88.533,46.71416232]
[1646551830265,1.53684524,88.584,88.533,46.71416232]
[1646551830563,1.53684524,88.583,88.533,46.71416232]
[1646551831164,1.53684524,88.582,88.533,46.71416232]
[1646551831764,1.53684524,88.582,88.533,19.69823526]
[1646551832165,1.53684524,88.583,88.533,19.69823526]
[1646551832668,1.53684524,88.582,88.533,19.69823526]
[1646551833065,1.53684524,88.579,88.533,19.69823526]
[1646551833265,23.7639,88.589,88.533,19.69823526]
[1646551833266,1.53684524,88.582,88.533,19.69823526]
[1646551833766,1.53684524,88.581,88.533,19.69823526]
[1646551834966,1.53684524,88.579,88.533,19.69823526]
[1646551835370,1.53684524,88.58,88.533,19.69823526]
[1646551835770,1.53684524,88.582,88.533,19.69823526]
[1646551836773,1.53684524,88.581,88.533,19.69823526]
[1646551837472,23.7639,88.589,88.533,19.69823526]
[1646551837473,1.53684524,88.582,88.533,19.69823526]
[1646551838172,1.53684524,88.583,88.533,19.69823526]
[1646551839875,1.53684524,88.584,88.533,19.69823526]
[1646551840277,1.53684524,88.585,88.533,19.69823526]
[1646551840473,1.53684524,88.584,88.533,19.69823526]
[1646551843978,1.53684524,88.584,88.533,16.8621]
[1646551844879,1.53684524,88.582,88.533,16.8621]
[1646551845078,1.53684524,88.58,88.533,16.8621]
[1646551845679,1.53684524,88.582,88.533,16.8621]
[1646551845878,1.53684524,88.581,88.533,16.8621]
[1646551846279,1.53684524,88.582,88.533,16.8621]
[1646551846882,1.53684524,88.584,88.533,16.8621]
[1646551847280,1.53684524,88.585,88.533,16.8621]
[1646551847480,1.53684524,88.584,88.533,16.8621]
[1646551847982,1.53684524,88.583,88.533,16.8621]
[1646551849280,1.53684524,88.583,88.534,35.49806232]
[1646551849481,1.53684524,88.587,88.534,35.49806232]
[1646551849681,23.7639,88.589,88.535,29.85206232]
[1646551849881,23.7639,88.589,88.536,5.644]
[1646551850081,23.7639,88.589,88.537,22.7225]
[1646551850286,23.7639,88.589,88.54,16.9386]
[1646551850482,23.7639,88.589,88.541,5.644]
[1646551850682,23.7639,88.589,88.541,8.48013526]
[1646551851685,1.53684524,88.588,88.541,8.48013526]
[1646551851885,1.53684524,88.588,88.542,2.83613526]
[1646551852085,1.53684524,88.588,88.55,16.9362]
[1646551852285,1.53684524,88.588,88.551,5.644]
[1646551852484,23.7639,88.589,88.551,5.644]
[1646551852485,23.7639,88.589,88.551,8.48013526]
[1646551852889,23.7639,88.589,88.552,2.83613526]
[1646551853185,23.7639,88.589,88.553,5.644]
[1646551853587,23.7639,88.589,88.539,5.644]
[1646551853806,1.53684524,88.588,88.539,5.644]
[1646551853988,1.53684524,88.586,88.539,5.644]
[1646551854187,1.53684524,88.587,88.539,5.644]
[1646551854386,1.53684524,88.584,88.538,5.644]
[1646551854591,1.53684524,88.582,88.538,5.644]
[1646551854789,1.53684524,88.581,88.538,5.644]
[1646551854987,1.53684524,88.582,88.538,5.644]
[1646551855390,1.53684524,88.581,88.538,5.644]
[1646551855586,1.53684524,88.574,88.538,5.644]
[1646551856989,1.53684524,88.575,88.538,5.644]
[1646551857593,1.53684524,88.574,88.538,5.644]
[1646551859591,1.53684524,88.575,88.538,5.644]
[1646551859990,1.53684524,88.574,88.538,5.644]
[1646551861314,1.53684524,88.575,88.538,5.644]
[1646551861793,1.53684524,88.574,88.538,5.644]
[1646551861994,1.53684524,88.575,88.538,5.644]
[1646551862696,1.53684524,88.574,88.538,5.644]
[1646551863495,1.53684524,88.577,88.538,5.644]
[1646551867101,1.53684524,88.58,88.538,5.644]
[1646551868406,1.53684524,88.581,88.538,5.644]
[1646551868822,1.53684524,88.581,88.539,27.01592706]
[1646551869020,1.53684524,88.581,88.538,5.644]
[1646551872224,1.53684524,88.58,88.538,5.644]
[1646551872823,1.53684524,88.575,88.538,5.644]
[1646551873826,1.53684524,88.577,88.533,16.8621]
[1646551874026,1.53684524,88.574,88.533,16.8621]
[1646551874226,1.53684524,88.573,88.533,16.8621]
[1646551874427,1.53684524,88.572,88.533,16.8621]
[1646551875026,1.53684524,88.571,88.533,16.8621]
[1646551875829,1.53684524,88.57,88.533,16.8621]
[1646551876028,1.53684524,88.571,88.533,16.8621]
[1646551879831,1.53684524,88.572,88.533,16.8621]
[1646551880032,1.53684524,88.572,88.54,16.9389]
[1646551880233,1.53684524,88.579,88.54,16.9389]
[1646551880435,1.53684524,88.589,88.54,33.1989]
[1646551880634,1.53684524,88.588,88.541,29.85206232]
[1646551881034,1.53684524,88.586,88.542,2.83613526]
[1646551881835,1.53684524,88.587,88.542,2.83613526]
[1646551882035,1.53684524,88.588,88.542,2.83613526]
[1646551882237,1.53684524,88.588,88.55,16.9358]
[1646551882437,1.53684524,88.587,88.551,23.5746]
[1646551882639,1.53684524,88.588,88.551,26.41073526]
[1646551882838,1.53684524,88.587,88.552,2.83613526]
[1646551883638,1.53684524,88.588,88.552,2.83613526]
[1646551883838,1.53684524,88.59,88.552,2.83613526]
[1646551884638,1.53684524,88.589,88.552,2.83613526]
[1646551885040,1.53684524,88.589,88.551,23.5746]
[1646551885241,1.53684524,88.585,88.551,23.5746]
[1646551885642,1.53684524,88.584,88.551,23.5746]
[1646551885844,1.53684524,88.586,88.551,23.5746]
[1646551886042,1.53684524,88.584,88.551,23.5746]
[1646551886245,1.53684524,88.583,88.551,23.5746]
[1646551886446,1.53684524,88.582,88.551,23.5746]
[1646551888851,1.53684524,88.581,88.551,23.5746]
[1646551889456,0.00684524,88.585,88.551,23.5746]
[1646551889653,3.07075364,88.61,88.551,23.5746]
[1646551889654,3.07075364,88.623,88.552,2.83613526]
[1646551890157,6.17418541,88.626,88.552,44.83530511]
[1646551890357,3.07075364,88.638,88.553,27.01592706]
[1646551890557,3.07075364,88.643,88.553,27.01592706]
[1646551890759,3.07075364,88.643,88.554,14.98324279]
[1646551890960,3.07075364,88.644,88.554,17.81937805]
[1646551891161,3.07075364,88.644,88.56,56.4365]
[1646551891361,3.07075364,88.644,88.57,16.26]
[1646551891559,3.07075364,88.644,88.58,16.9301]
[1646551891760,9.24493905,88.645,88.58,33.1901]
[1646551891965,6.17418541,88.645,88.58,33.1901]
[1646551892159,11.81618541,88.657,88.581,2.83613526]
[1646551892359,6.17418541,88.656,88.581,2.83613526]
[1646551892560,5.642,88.655,88.581,2.83613526]
[1646551892759,5.642,88.657,88.581,2.83613526]
[1646551892959,5.642,88.657,88.582,24.7183]
[1646551893159,5.642,88.657,88.6,16.927]
[1646551893361,5.642,88.657,88.601,51.82378216]
[1646551894565,24.6355,88.658,88.601,51.82378216]
[1646551896779,24.6355,88.658,88.59,33.1878]
[1646551896979,113.2,88.657,88.59,16.26]
[1646551897180,24.6355,88.658,88.591,2.83613526]
[1646551897379,5.641,88.657,88.591,2.83613526]
[1646551897979,5.641,88.657,88.592,45.98214161]
[1646551898579,24.6355,88.658,88.592,45.98214161]
[1646551898979,24.6355,88.658,88.593,2.83613526]
[1646551899380,24.6355,88.658,88.593,27.41313526]
[1646551900984,24.6355,88.658,88.594,2.83613526]
[1646551902486,118.841,88.657,88.594,2.83613526]
[1646551902687,118.841,88.657,88.593,24.577]
[1646551902885,134.83975311,88.657,88.593,24.577]
[1646551903086,118.841,88.657,88.593,24.577]
[1646551903286,118.841,88.657,88.594,46.21489507]
[1646551903686,5.641,88.657,88.594,46.21489507]
[1646551904286,118.841,88.657,88.594,46.21489507]
[1646551904487,5.641,88.657,88.594,46.21489507]
[1646551905186,118.841,88.657,88.594,46.21489507]
[1646551906087,5.641,88.657,88.594,46.21489507]
[1646551906286,118.841,88.657,88.594,46.21489507]
[1646551906986,5.641,88.657,88.594,46.21489507]
[1646551908188,5.641,88.657,88.595,2.83613526]
[1646551908388,24.6355,88.658,88.595,2.83613526]
[1646551909594,24.6355,88.658,88.595,59.31613526]
[1646551909793,24.6355,88.658,88.6,16.9271]
[1646551910294,24.6355,88.658,88.601,2.83613526]
[1646551910692,38.79109807,88.657,88.601,2.83613526]
[1646551911094,38.79109807,88.657,88.602,5.641]
[1646551912092,5.641,88.656,88.601,2.83613526]
[1646551913094,5.641,88.656,88.594,5.641]
[1646551914196,6.17165839,88.655,88.594,5.641]
[1646551914396,5.641,88.654,88.594,5.641]
[1646551914596,24.43,88.653,88.594,5.641]
[1646551914799,5.641,88.652,88.594,5.641]
[1646551914997,6.17165839,88.651,88.594,5.641]
[1646551915195,5.641,88.65,88.594,5.641]
[1646551915394,5.641,88.652,88.594,5.641]
[1646551915595,6.1718287,88.651,88.594,5.641]
[1646551915795,5.641,88.65,88.594,5.641]
[1646551916196,24.43,88.653,88.594,5.641]
[1646551916197,6.17193612,88.649,88.594,5.641]
[1646551916394,6.17193612,88.651,88.594,5.641]
[1646551916596,5.641,88.65,88.595,2.83613526]
[1646551916799,6.17193612,88.649,88.596,5.641]
[1646551917197,6.17193612,88.651,88.594,5.641]
[1646551917398,5.641,88.65,88.594,5.641]
[1646551917797,6.17193612,88.649,88.594,5.641]
[1646551919601,3.07075364,88.644,88.594,5.641]
[1646551919804,24.9388,88.643,88.594,5.641]
[1646551920205,6.17193612,88.642,88.594,5.641]
[1646551921803,6.17193612,88.642,88.593,24.577]
[1646551923004,6.17193612,88.642,88.594,5.642]
[1646551923605,6.17193612,88.642,88.595,2.83613526]
[1646551923803,6.17193612,88.642,88.596,5.642]
[1646551924204,6.17193612,88.642,88.596,8.47813526]
[1646551924606,3.07075364,88.648,88.596,8.47813526]
[1646551925005,3.07075364,88.653,88.596,8.47813526]
[1646551925206,3.07075364,88.654,88.596,8.47813526]
[1646551925810,9.24196422,88.656,88.596,8.47813526]
[1646551926108,6.17121058,88.655,88.596,8.47813526]
[1646551926308,3.07075364,88.656,88.596,8.47813526]
[1646551926309,9.24196422,88.656,88.596,8.47813526]
[1646551927010,3.07075364,88.655,88.596,8.47813526]
[1646551927209,3.07075364,88.655,88.596,81.73423526]
[1646551927409,9.24196422,88.656,88.596,81.73423526]
[1646551928211,3.07075364,88.655,88.596,81.73423526]
[1646551928411,9.24196422,88.655,88.596,81.73423526]
[1646551928712,6.17121058,88.654,88.596,81.73423526]
[1646551928910,3.07075364,88.655,88.596,81.73423526]
[1646551929711,3.07075364,88.655,88.6,16.9258]
[1646551929914,9.24196422,88.656,88.601,5.641]
[1646551930113,23.6859,88.657,88.601,8.47713526]
[1646551930415,23.6859,88.657,88.602,2.83613526]
[1646551930615,23.6859,88.657,88.603,5.641]
[1646551930814,23.6859,88.657,88.604,23.7756]
[1646551931014,23.6859,88.657,88.605,5.641]
[1646551931418,23.6859,88.657,88.605,8.47713526]
[1646551931615,23.6859,88.657,88.606,2.83613526]
[1646551931813,23.6859,88.657,88.607,5.641]
[1646551932214,23.6859,88.657,88.608,2.83613526]
[1646551932513,23.6859,88.657,88.609,5.641]
[1646551932718,3.07075364,88.665,88.61,16.9228]
[1646551932918,3.07075364,88.672,88.611,5.64]
[1646551933121,6.16944093,88.676,88.611,5.64]
[1646551933319,6.16944093,88.685,88.612,18.60320906]
[1646551933519,23.6821,88.686,88.613,5.64]
[1646551933820,41.41306663,88.684,88.621,118.48952803]
[1646551934020,41.41306663,88.684,88.63,16.26]
[1646551934424,6.16973922,88.683,88.598,27.01592706]
[1646551934623,3.07075364,88.682,88.6,16.26]
[1646551934822,5.64,88.681,88.6,16.26]
[1646551935022,3.07075364,88.677,88.6,16.26]
[1646551935222,28.8986,88.676,88.601,49.54868469]
[1646551935422,6.16973922,88.675,88.6,16.26]
[1646551935625,3.07075364,88.667,88.598,5.64]
[1646551935824,5.641,88.666,88.598,5.64]
[1646551936023,23.2586,88.665,88.598,5.64]
[1646551936223,5.641,88.664,88.597,24.1525]
[1646551936441,9.24049286,88.663,88.597,24.1525]
[1646551936640,3.07075364,88.661,88.597,24.1525]
[1646551936842,5.641,88.66,88.597,24.1525]
[1646551937044,6.16973922,88.659,88.597,24.1525]
[1646551937243,5.641,88.658,88.597,24.1525]
[1646551937446,6.16973922,88.657,88.597,24.1525]
[1646551937648,5.641,88.656,88.597,24.1525]
[1646551937846,6.16973922,88.655,88.597,24.1525]
[1646551938048,118.841,88.654,88.582,5.641]
[1646551938350,3.07075364,88.65,88.573,52.04756428]
[1646551938549,3.07075364,88.647,88.574,5.642]
[1646551938749,5.642,88.646,88.574,5.642]
[1646551938948,6.16973922,88.645,88.564,5.642]
[1646551939148,22.9827,88.644,88.564,5.642]
[1646551939549,6.16973922,88.643,88.564,5.642]
[1646551939749,6.16973922,88.643,88.565,55.89092166]
[1646551940049,5.643,88.642,88.566,5.643]
[1646551940452,6.16973922,88.641,88.566,5.643]
[1646551940853,6.16973922,88.642,88.566,5.643]
[1646551941050,6.16973922,88.64,88.566,5.643]
[1646551941251,6.16973922,88.642,88.566,5.643]
[1646551942752,6.16973922,88.642,88.567,2.83613526]
[1646551942950,6.16973922,88.642,88.568,5.643]
[1646551943751,5.643,88.641,88.568,5.643]
[1646551943951,6.16973922,88.64,88.568,5.643]
[1646551944152,118.843,88.639,88.568,5.643]
[1646551944356,118.843,88.639,88.564,5.643]
[1646551944555,113.2,88.637,88.563,22.8949]
[1646551944755,67.79,88.634,88.55,5.643]
[1646551944955,3.07075364,88.628,88.549,17.0194]
[1646551945153,113.2,88.619,88.549,17.0194]
[1646551945354,113.2,88.617,88.549,17.0194]
[1646551945554,113.2,88.615,88.535,72.422251]
[1646551945754,113.2,88.613,88.535,24.6669]
[1646551945956,113.2,88.611,88.536,5.644]
[1646551946756,113.2,88.611,88.537,56.41119247]
[1646551946956,22.5308,88.614,88.54,16.9388]
[1646551947156,22.5308,88.614,88.54,24.2188]
[1646551947656,22.5308,88.614,88.537,56.41119247]
[1646551947856,16.9477,88.61,88.537,56.41119247]
[1646551948055,67.79,88.607,88.51,16.26]
[1646551948257,113.2,88.6,88.511,24.6772]
[1646551948460,5.646,88.599,88.511,24.6772]
[1646551949058,5.646,88.599,88.517,58.31638354]
[1646551950357,5.646,88.599,88.511,24.6772]
[1646551950559,113.2,88.598,88.511,24.6772]
[1646551950760,5.646,88.597,88.511,24.6772]
[1646551951360,5.646,88.597,88.517,49.27642107]
[1646551951763,5.646,88.598,88.517,49.27642107]
[1646551951963,5.646,88.599,88.52,95.90787416]
[1646551952160,130.86412691,88.6,88.52,112.16787416]
[1646551952360,130.86412691,88.6,88.521,26.99854173]
[1646551952562,130.86412691,88.6,88.521,41.85400791]
[1646551952763,5.644,88.599,88.522,22.8829]
[1646551952961,118.844,88.599,88.522,22.8829]
[1646551953761,5.644,88.599,88.522,22.8829]
[1646551954160,118.844,88.599,88.522,22.8829]
[1646551954361,180.99,88.591,88.508,25.77558909]
[1646551954661,5.646,88.59,88.501,24.6875]
[1646551954860,113.2,88.589,88.501,24.6875]
[1646551955060,5.646,88.588,88.501,24.6875]
[1646551955463,113.2,88.586,88.502,58.23094036]
[1646551955664,5.646,88.585,88.502,58.23094036]
[1646551957064,5.646,88.585,88.503,2.83613526]
[1646551958366,24.7439,88.59,88.504,25.77558909]
[1646551958570,23.343,88.6,88.504,60.5417646]
[1646551958770,23.343,88.6,88.511,0.26755164]
[1646551958963,23.343,88.6,88.52,16.26]
[1646551959165,23.343,88.6,88.53,16.26]
[1646551959364,52.70258461,88.599,88.531,79.39034377]
[1646551959564,5.644,88.598,88.531,79.39034377]
[1646551959964,28.8598,88.598,88.532,2.83613526]
[1646551960569,28.8598,88.598,88.532,19.74409129]
[1646551960970,28.8598,88.598,88.533,2.83613526]
[1646551961570,23.2158,88.598,88.533,2.83613526]
[1646551962474,5.644,88.623,88.54,16.9378]
[1646551962694,5.644,88.629,88.55,16.26]
[1646551962893,5.644,88.658,88.55,16.26]
[1646551963094,5.643,88.668,88.551,132.94409129]
[1646551963292,5.643,88.669,88.555,113.2]
[1646551963592,40.9065644,88.643,88.57,16.26]
[1646551963797,40.9065644,88.643,88.58,16.26]
[1646551964292,40.9065644,88.643,88.581,2.83613526]
[1646551964793,5.642,88.642,88.581,2.83613526]
[1646551965393,40.9065644,88.643,88.581,2.83613526]
[1646551965894,23.41526039,88.669,88.581,2.83613526]